bitfinex/quotes_ETHUSD_20240828
["timestamp","ask_amount","ask_price","bid_price","bid_amount"]
[1724807233239,9.0935559,2444.1,2444.0,0.96262469]
[1724807233642,8.266869,2444.1,2444.0,0.96262469]
[1724807233827,4.175389,2444.1,2444.0,0.96262469]
[1724807234028,0.083909,2444.1,2444.0,0.96262469]
[1724807234242,4.09148,2444.1,2444.0,0.96262469]
[1724807234410,4.17532541,2444.1,2444.0,0.96262469]
[1724807234841,0.08384541,2444.1,2444.0,0.96262469]
[1724807235061,0.08384541,2444.1,2444.0,5.46138865]
[1724807235223,4.09008,2445.0,2444.0,10.84429023]
[1724807235424,4.09008,2445.0,2444.6,2.3337]
[1724807235654,4.09007,2445.0,2444.6,2.41550417]
[1724807235858,0.08125345,2444.9,2444.7,0.65811857]
[1724807236159,0.08125345,2444.9,2444.7,4.82380006]
[1724807236458,0.08125345,2444.9,2444.6,2.3337]
[1724807236615,4.09032,2444.8,2444.3,5.3511]
[1724807236815,4.09072,2444.6,2444.3,2.3511]
[1724807237016,4.09107,2444.4,2444.2,0.4097]
[1724807237341,0.08125345,2444.3,2444.1,0.4097]
[1724807237717,4.09107,2444.4,2444.0,3.64680716]
[1724807238058,4.09058,2444.7,2444.1,5.24693035]
[1724807238229,0.08125345,2444.6,2444.2,0.08181686]
[1724807238417,4.17191345,2444.6,2444.2,0.9793723]
[1724807238612,4.17191345,2444.6,2444.2,0.89755544]
[1724807239442,4.09108,2444.4,2444.2,0.89755544]
[1724807239626,0.08177481,2444.3,2444.2,0.89755544]
[1724807240366,4.09082,2444.5,2444.2,0.89755544]
[1724807240535,0.08177481,2444.3,2444.2,0.89755544]
[1724807241763,4.09116,2444.3,2444.1,1.08124886]
[1724807242121,0.08177481,2444.2,2444.1,1.08124886]
[1724807242358,4.09116,2444.3,2444.0,3.72342469]
[1724807242660,0.08177481,2444.2,2444.0,3.72342469]
[1724807242869,4.09141,2444.2,2444.0,3.31372469]
[1724807243073,0.08177481,2444.1,2444.0,3.31372469]
[1724807243763,0.08177481,2444.1,2444.0,3.94509716]
[1724807244176,4.09116,2444.3,2444.0,3.94509716]
[1724807244341,0.08177481,2444.1,2444.0,0.96262469]
[1724807244549,4.09136,2444.2,2444.0,0.96262469]
[1724807244743,0.08177481,2444.1,2444.0,0.96262469]
[1724807245332,11.48708929,2444.1,2444.0,0.96262469]
[1724807245537,10.66063481,2444.1,2444.0,0.96262469]
[1724807246335,14.75211481,2444.1,2444.0,0.96262469]
[1724807246781,10.66063481,2444.1,2444.0,0.96262469]
[1724807247660,8.26473481,2444.1,2444.0,0.96262469]
[1724807247850,9.73992029,2444.1,2444.0,0.96262469]
[1724807249350,8.26473481,2444.1,2444.0,0.96262469]
[1724807254577,12.35621481,2444.1,2444.0,0.96262469]
[1724807257405,14.63121481,2444.1,2444.0,0.96262469]
[1724807257813,22.8883763,2444.1,2444.0,0.05328982]
[1724807258014,28.17721393,2444.1,2444.0,0.05328982]
[1724807258713,24.01153244,2444.1,2444.0,0.05328982]
[1724807259718,19.92005244,2444.1,2444.0,0.05328982]
[1724807261882,17.64505244,2444.1,2444.0,0.05328982]
[1724807264805,14.64505244,2444.1,2444.0,0.05328982]
[1724807265825,18.81073393,2444.1,2444.0,0.05328982]
[1724807265986,14.64505244,2444.1,2444.0,0.05328982]
[1724807272338,0.08177481,2444.1,2444.0,0.05328982]
[1724807272503,8.26473481,2444.1,2444.0,0.05328982]
[1724807275635,12.35621481,2444.1,2444.0,0.05328982]
[1724807276557,12.35621481,2444.1,2442.1,0.8586764]
[1724807276558,4.09399,2442.6,2442.1,0.8586764]
[1724807276836,4.09291,2443.3,2442.1,0.8586764]
[1724807276837,4.09381,2442.8,2442.2,6.38128645]
[1724807277132,4.09393,2442.7,2442.3,1.66619204]
[1724807277332,4.17148821,2442.7,2442.3,0.91226525]
[1724807277535,4.17148821,2442.7,2442.3,0.4102]
[1724807277938,8.26546821,2442.7,2442.3,1.43550933]
[1724807278242,4.17148821,2442.7,2442.3,0.4102]
[1724807278451,8.26540821,2442.7,2442.3,0.99169376]
[1724807278902,4.17147821,2442.7,2442.3,0.99169376]
[1724807279303,4.17147821,2442.7,2442.3,5.15737525]
[1724807279515,8.26539821,2442.7,2442.4,2.3771]
[1724807279756,8.26540821,2442.7,2442.4,2.3771]
[1724807280241,8.26541821,2442.7,2442.4,2.3771]
[1724807280448,8.26543821,2442.7,2442.4,2.3771]
[1724807280750,4.17147821,2442.7,2442.4,2.3771]
[1724807282014,0.07755821,2442.7,2442.6,0.4102]
[1724807282331,4.09342,2443.0,2442.6,0.4102]
[1724807282553,2.4728,2443.7,2442.7,4.16568149]
[1724807282554,4.09287,2443.3,2442.7,4.16568149]
[1724807282732,4.09248,2443.6,2443.1,4.16568149]
[1724807283053,4.09252,2443.5,2443.1,4.16568149]
[1724807283758,4.09269,2443.4,2443.1,4.16568149]
[1724807283915,4.09269,2443.4,2443.1,4.85645964]
[1724807284543,8.18517,2443.5,2443.1,4.85645964]
[1724807284747,4.09267,2443.4,2443.1,4.85645964]
[1724807285052,4.09267,2443.4,2443.0,0.4102]
[1724807285369,4.09308,2443.2,2442.9,2.3319]
[1724807286315,4.09308,2443.2,2442.9,6.49758149]
[1724807286521,4.09308,2443.2,2442.9,7.48835964]
[1724807286962,4.09282,2443.3,2442.9,7.48835964]
[1724807287122,4.09262,2443.5,2442.9,7.48835964]
[1724807287323,4.911126,2443.5,2443.0,0.4102]
[1724807287650,4.09283,2443.3,2443.0,0.4102]
[1724807288243,4.09262,2443.5,2443.0,0.4102]
[1724807288418,4.09266,2443.4,2443.0,0.4102]
[1724807288621,4.09266,2443.4,2443.0,1.40916442]
[1724807289552,4.09262,2443.5,2443.0,1.40916442]
[1724807289757,4.09227,2443.7,2443.2,4.16568149]
[1724807289919,4.09254,2443.5,2443.0,12.943855]
[1724807290115,4.09254,2443.5,2443.1,0.38229231]
[1724807290349,0.07358904,2443.4,2443.1,0.38229231]
[1724807290523,4.09283,2443.3,2443.0,7.77920909]
[1724807290962,0.07358904,2443.2,2443.0,7.77920909]
[1724807291263,0.07358904,2443.2,2443.0,0.4102]
[1724807291424,4.09283,2443.3,2443.0,0.98441]
[1724807291626,0.07358904,2443.1,2443.0,0.98441]
[1724807291832,4.09283,2443.3,2443.0,0.98441]
[1724807292369,0.07358904,2443.2,2443.0,0.98441]
[1724807292753,4.09311,2443.2,2442.8,2.13593444]
[1724807293065,0.07358904,2443.1,2442.7,12.8302]
[1724807293276,0.07358904,2443.1,2442.7,15.7636324]
[1724807293432,4.09324,2443.1,2442.7,15.7636324]
[1724807293627,4.09333,2443.0,2442.7,12.8302]
[1724807293859,4.16711028,2443.0,2442.7,12.8302]
[1724807294166,0.07378028,2443.0,2442.7,12.8302]
[1724807294568,4.09318,2443.1,2442.7,12.8302]
[1724807294885,4.09391,2442.7,2442.4,0.8586764]
[1724807295026,4.09366,2442.8,2442.3,11.46370019]
[1724807295027,8.18741,2442.8,2442.3,10.18490909]
[1724807295223,0.07352529,2442.6,2442.3,10.18490909]
[1724807295433,8.18741,2442.8,2442.3,10.18490909]
[1724807295670,0.07352529,2442.5,2442.3,10.18490909]
[1724807295843,4.09366,2442.8,2442.3,17.32715928]
[1724807296040,0.07352529,2442.4,2442.3,14.02015419]
[1724807296248,4.0934,2443.0,2442.7,0.4102]
[1724807296765,8.18681,2443.0,2442.7,0.4102]
[1724807296928,4.0934,2443.0,2442.7,0.4102]
[1724807297544,4.09323,2443.1,2442.7,0.4102]
[1724807297737,4.09323,2443.1,2442.7,3.34638815]
[1724807297945,0.07310448,2443.0,2442.7,3.34638815]
[1724807298669,8.25985448,2443.0,2442.7,2.93618815]
[1724807298868,8.25985448,2443.0,2442.7,2.4786]
[1724807299040,4.16643448,2443.0,2442.7,2.4786]
[1724807299774,8.25990448,2443.0,2442.7,2.4786]
[1724807299938,4.09349,2442.9,2442.6,4.16568149]
[1724807300281,4.09349,2442.9,2442.4,8.04629691]
[1724807300481,4.16679448,2442.8,2442.4,8.04629691]
[1724807300637,4.09369,2442.8,2442.4,8.04629691]
[1724807300838,4.16702548,2442.7,2442.4,0.4102]
[1724807301037,4.16702548,2442.7,2442.3,10.34557779]
[1724807301038,4.16708548,2442.7,2442.3,7.36900909]
[1724807301289,0.07315548,2442.7,2442.4,4.16568149]
[1724807301579,4.0935,2442.9,2442.4,4.16568149]
[1724807301739,0.07315548,2442.6,2442.4,5.81046609]
[1724807302087,4.0935,2442.9,2442.5,0.4102]
[1724807302380,0.07315548,2442.8,2442.5,0.4102]
[1724807302955,4.16682548,2442.8,2442.5,0.4102]
[1724807305590,0.07315548,2442.8,2442.5,0.4102]
[1724807306083,4.09367,2442.8,2442.5,0.4102]
[1724807306291,0.07288768,2442.7,2442.5,0.4102]
[1724807306460,4.09367,2442.8,2442.5,0.4102]
[1724807306667,4.09412,2442.6,2442.3,7.36900909]
[1724807307105,0.07288768,2442.5,2442.3,7.36900909]
[1724807307611,0.07288768,2442.5,2442.4,4.16568149]
[1724807307768,0.07288768,2442.5,2442.4,4.57588149]
[1724807307965,2.2564,2443.1,2442.3,8.39430431]
[1724807307966,4.09408,2442.6,2442.3,7.36900909]
[1724807308210,4.31897,2443.0,2442.3,7.36900909]
[1724807308525,4.09418,2442.5,2442.3,7.36900909]
[1724807308680,0.0726709,2442.4,2442.3,7.36900909]
[1724807309428,0.0726709,2442.4,2442.3,10.76355815]
[1724807309573,4.09386,2442.7,2442.3,10.76355815]
[1724807309913,4.09386,2442.7,2442.3,7.77920909]
[1724807310068,0.07255612,2442.6,2442.3,0.4102]
[1724807310270,0.07255612,2442.6,2442.4,4.16568149]
[1724807310474,6.34963,2443.1,2442.4,4.16568149]
[1724807310475,4.09316,2443.1,2442.5,2.5102736]
[1724807310677,0.07255612,2443.0,2442.7,4.16568149]
[1724807310875,4.09316,2443.1,2442.5,7.47005779]
[1724807311201,0.07255612,2443.0,2442.6,0.44115878]
[1724807311388,0.07255612,2443.0,2442.6,0.85135878]
[1724807311775,4.09316,2443.1,2442.6,0.85135878]
[1724807312599,4.09335,2443.0,2442.6,0.85135878]
[1724807313111,0.07282394,2442.9,2442.6,0.85135878]
[1724807314185,4.09383,2442.7,2442.3,0.4102]
[1724807314394,4.094,2442.6,2442.3,4.43540661]
[1724807314616,4.16696146,2442.6,2442.3,3.4102]
[1724807314987,0.07295146,2442.6,2442.3,3.4102]
[1724807315499,0.07295146,2442.6,2442.4,4.57588149]
[1724807315685,4.09355,2442.9,2442.4,4.57588149]
[1724807315686,8.18713,2442.9,2442.4,4.57588149]
[1724807315885,0.07281119,2442.8,2442.4,4.57588149]
[1724807316389,0.07281119,2442.8,2442.6,4.16568149]
[1724807317314,0.07281119,2442.8,2442.4,4.57588149]
[1724807317697,4.16648119,2442.8,2442.4,4.57588149]
[1724807320298,4.09416,2442.5,2442.4,0.4102]
[1724807320498,0.07296422,2442.5,2442.1,5.43455789]
[1724807320704,0.07296422,2442.5,2442.2,7.58631164]
[1724807320915,4.09424,2442.5,2442.2,3.1619318]
[1724807321103,0.07296422,2442.4,2442.2,2.13663603]
[1724807321304,0.07296422,2442.4,2442.2,3.16197845]
[1724807321501,0.07296422,2442.4,2442.1,5.43455789]
[1724807321502,8.18809,2442.6,2442.1,5.43455789]
[1724807321688,0.07296422,2442.5,2442.2,4.58630282]
[1724807321901,0.07296422,2442.5,2442.2,2.13659059]
[1724807322100,4.16713422,2442.5,2442.2,3.16196131]
[1724807322302,4.16713422,2442.5,2442.2,2.13659059]
[1724807323029,0.07296422,2442.5,2442.3,4.16568149]
[1724807323536,4.16713422,2442.5,2442.3,4.16568149]
[1724807323736,0.07296422,2442.5,2442.3,4.16568149]
[1724807325556,0.07296422,2442.5,2442.4,1.50617821]
[1724807325742,4.09362,2442.9,2442.4,5.07806333]
[1724807326035,0.07296422,2442.8,2442.6,4.16568149]
[1724807326538,4.09362,2442.9,2442.6,4.16568149]
[1724807326539,8.1872,2442.9,2442.6,4.16568149]
[1724807326751,4.16653669,2442.8,2442.5,0.4102]
[1724807327053,0.07283669,2442.8,2442.5,0.4102]
[1724807327734,4.16653669,2442.8,2442.5,0.4102]
[1724807327937,4.09384,2442.7,2442.5,0.4102]
[1724807328144,0.07292596,2442.6,2442.5,0.4102]
[1724807328444,4.16691596,2442.6,2442.3,2.13643486]
[1724807328649,4.16691596,2442.6,2442.3,0.4102]
[1724807329406,4.09418,2442.5,2442.3,0.4102]
[1724807329956,0.07292596,2442.4,2442.3,0.4102]
[1724807333126,0.07246684,2442.4,2442.3,0.4102]
[1724807333259,4.09401,2442.6,2442.3,0.4102]
[1724807333465,4.09512,2442.0,2441.8,0.8586764]
[1724807333693,10.46904,2442.0,2441.8,2.13699885]
[1724807333906,10.46904,2442.0,2441.6,8.63788549]
[1724807333907,0.07246684,2441.9,2441.7,3.16260071]
[1724807334117,0.07246684,2441.9,2441.6,8.63788549]
[1724807334118,0.07246684,2441.9,2441.6,11.94489058]
[1724807334345,6.37392,2442.0,2441.7,1.42473733]
[1724807334606,0.07246684,2441.9,2441.6,11.94489058]
[1724807334970,0.07246684,2441.9,2441.6,14.08203012]
[1724807335170,0.07246684,2441.9,2441.6,11.94489058]
[1724807335392,4.16763684,2441.9,2441.6,14.08205795]
[1724807335605,0.07246684,2441.9,2441.6,11.94489058]
[1724807335912,4.09518,2441.9,2441.6,11.94489058]
[1724807336071,0.07179068,2441.8,2441.6,11.94489058]
[1724807336705,4.09509,2442.0,2441.6,14.0820074]
[1724807336938,0.07179068,2441.9,2441.6,7.41451302]
[1724807337102,0.07179068,2441.9,2441.6,9.55161108]
[1724807337543,0.07179068,2441.9,2441.6,7.41451302]
[1724807337838,0.07179068,2441.9,2441.8,4.16568149]
[1724807338134,1.067465,2442.6,2441.8,10.08015781]
[1724807338135,2.3584,2442.5,2441.8,10.08015781]
[1724807338337,0.06855464,2442.4,2442.2,4.16568149]
[1724807338694,0.06855464,2442.4,2442.0,0.08189031]
[1724807338695,4.16289464,2442.4,2442.0,4.2475718]
[1724807339405,4.16289464,2442.4,2441.9,2.13675946]
[1724807339406,4.09475,2442.2,2441.9,2.21864984]
[1724807339753,0.06855464,2442.4,2442.0,4.16568149]
[1724807340054,0.06855464,2442.4,2442.1,0.42475793]
[1724807342741,0.06855464,2442.4,2442.2,4.24757188]
[1724807343053,4.51998469,2443.8,2442.2,4.24757188]
[1724807343054,4.09288,2443.3,2442.4,2.451]
[1724807343347,4.093,2443.2,2442.6,4.16568149]
[1724807343519,4.09377,2442.8,2442.5,0.4102]
[1724807343722,4.09392,2442.7,2442.5,0.4102]
[1724807343918,4.09399,2442.6,2442.5,0.4102]
[1724807344119,4.09438,2442.4,2442.0,4.16568149]
[1724807344341,4.09438,2442.4,2442.1,3.0]
[1724807344573,0.0702398,2442.3,2442.2,4.16568149]
[1724807344786,4.09374,2442.8,2442.2,5.67189247]
[1724807344963,2.2901,2442.9,2442.3,0.0818803]
[1724807345292,4.09366,2442.8,2442.3,0.0818803]
[1724807345437,4.09366,2442.8,2442.2,6.30218304]
[1724807345438,4.09384,2442.7,2442.2,6.30218304]
[1724807345637,4.09384,2442.7,2442.2,4.16568149]
[1724807346277,4.09366,2442.8,2442.2,5.53133306]
[1724807346487,8.18747,2442.8,2442.2,5.44945653]
[1724807346642,4.09366,2442.8,2442.2,5.44945653]
[1724807346843,4.09419,2442.5,2442.2,4.16568149]
[1724807347746,4.09419,2442.5,2442.2,4.24756586]
[1724807347937,4.09419,2442.5,2442.2,4.16568149]
[1724807348151,4.09394,2442.7,2442.2,4.24756587]
[1724807348152,8.18789,2442.7,2442.2,4.24756587]
[1724807348337,4.09394,2442.7,2442.2,4.16568149]
[1724807348743,4.09394,2442.7,2442.2,4.24756587]
[1724807349073,4.09399,2442.6,2442.2,4.24756587]
[1724807349408,6.38372,2442.9,2442.3,0.08188259]
[1724807349678,0.409301,2443.1,2442.8,4.16568149]
[1724807349679,4.09333,2443.0,2442.8,4.16568149]
[1724807349849,5.147615,2443.0,2442.6,4.16568149]
[1724807350173,4.09333,2443.0,2442.6,4.16568149]
[1724807351860,4.09349,2442.9,2442.6,4.16568149]
[1724807352285,0.07006115,2442.8,2442.6,4.16568149]
[1724807352591,4.09383,2442.7,2442.4,11.53469058]
[1724807352790,0.07006115,2442.8,2442.6,4.16568149]
[1724807352996,4.09333,2443.0,2442.6,4.16568149]
[1724807353205,0.07006115,2442.7,2442.6,4.16568149]
[1724807353371,4.09333,2443.0,2442.6,4.16568149]
[1724807353574,0.07006115,2442.9,2442.6,4.16568149]
[1724807355007,4.16356115,2442.9,2442.6,4.16568149]
[1724807355205,0.07006115,2442.9,2442.6,4.16568149]
[1724807355667,4.09338,2443.0,2442.6,4.16568149]
[1724807355861,0.07069937,2442.8,2442.6,4.16568149]
[1724807356104,4.09338,2443.0,2442.6,4.16568149]
[1724807356618,0.07069937,2442.9,2442.7,0.08187034]
[1724807356905,0.07069937,2442.9,2442.8,4.16568149]
[1724807357065,4.09277,2443.4,2442.8,4.247542]
[1724807357263,4.09284,2443.3,2443.0,4.16568149]
[1724807357611,4.09277,2443.4,2443.0,4.16568149]
[1724807358317,4.09275,2443.4,2443.0,4.16568149]
[1724807358526,4.09243,2443.6,2443.2,4.16568149]
[1724807358665,4.09175,2444.0,2443.4,4.16568149]
[1724807358866,4.09175,2444.0,2443.0,2.8009542]
[1724807358867,2.4737,2444.1,2443.8,4.16568149]
[1724807359106,4.09117,2444.3,2444.0,4.16568149]
[1724807359321,6.57762,2444.4,2444.0,4.16568149]
[1724807359601,7.44,2445.5,2444.2,4.16568149]
[1724807359602,4.09002,2445.0,2444.2,4.16568149]
[1724807359901,4.08971,2445.2,2444.7,4.16568149]
[1724807360191,0.657631,2445.1,2444.9,4.16568149]
[1724807360369,4.0892,2445.5,2444.9,4.16568149]
[1724807360578,4.08835,2446.0,2445.4,4.16568149]
[1724807360770,4.08782,2446.3,2445.9,4.16568149]
[1724807360977,0.817547,2446.3,2446.1,4.16568149]
[1724807361139,4.08765,2446.4,2446.1,4.16568149]
[1724807361340,4.08781,2446.3,2446.1,4.16568149]
[1724807361542,4.08765,2446.4,2446.1,4.16568149]
[1724807362093,6.54831,2446.6,2445.7,4.16568149]
[1724807362094,4.08812,2446.2,2445.7,4.16568149]
[1724807362447,4.08826,2446.1,2445.7,4.16568149]
[1724807362683,4.08812,2446.2,2445.7,4.16568149]
[1724807362984,4.08812,2446.2,2445.9,4.16568149]
[1724807363219,4.08848,2445.9,2445.5,4.16568149]
[1724807363483,4.08846,2446.0,2445.5,4.16568149]
[1724807363694,4.08847,2445.9,2445.5,4.16568149]
[1724807363844,4.08846,2446.0,2445.5,4.16568149]
[1724807364043,4.08846,2446.0,2445.4,8.55511768]
[1724807365056,8.17693,2446.0,2445.4,8.55511768]
[1724807365253,0.817693,2445.9,2445.4,8.55511768]
[1724807365472,4.08846,2446.0,2445.4,8.55511768]
[1724807365658,0.07982348,2445.8,2445.4,8.55511768]
[1724807365986,0.07982348,2445.7,2445.4,8.55511768]
[1724807366204,4.08844,2446.0,2445.4,8.55511768]
[1724807366376,0.07982348,2445.6,2445.1,5.55511768]
[1724807367089,4.16891348,2445.6,2445.1,5.55511768]
[1724807367296,4.91493635,2445.5,2444.9,7.36900909]
[1724807367458,4.08915,2445.5,2444.9,7.45080303]
[1724807367785,0.07889433,2445.4,2444.9,7.45080303]
[1724807368389,4.58501876,2445.4,2444.9,7.36900909]
[1724807369004,4.08953,2445.3,2444.9,7.36900909]
[1724807369358,4.08956,2445.3,2444.9,7.36900909]
[1724807369690,4.08994,2445.1,2444.5,5.55511768]
[1724807369899,4.0906,2444.7,2444.2,5.55511768]
[1724807370189,0.40906,2444.6,2444.2,5.55511768]
[1724807370479,4.09023,2444.9,2444.2,5.55511768]
[1724807370480,0.0783977,2444.5,2444.2,5.55511768]
[1724807370684,0.0783977,2444.5,2444.3,0.08181558]
[1724807370990,0.0783977,2444.4,2444.3,0.08181558]
[1724807371197,0.00571213,2444.4,2444.3,5.63693326]
[1724807371399,4.08991,2445.1,2444.3,6.18693326]
[1724807371682,0.073479,2445.0,2444.3,6.10511768]
[1724807371885,0.073479,2445.0,2444.4,0.0818019]
[1724807372182,0.073479,2445.0,2444.4,0.70049386]
[1724807372949,4.163459,2445.0,2444.4,0.70049386]
[1724807375347,4.09015,2444.9,2444.4,0.70049386]
[1724807375966,0.073479,2444.8,2444.4,0.70049386]
[1724807376465,0.073479,2444.8,2444.3,6.10511768]
[1724807376466,4.163899,2444.8,2444.3,6.10511768]
[1724807378337,0.073479,2444.8,2444.2,7.36900909]
[1724807378475,4.0909,2444.5,2444.2,7.36900909]
[1724807378675,8.2547527,2444.7,2444.2,8.96142177]
[1724807378916,4.09058,2444.7,2444.3,5.55511768]
[1724807379073,4.09019,2444.9,2444.4,1.43599781]
[1724807379074,0.0735427,2444.6,2444.4,1.43599781]
[1724807379279,2.2861,2445.4,2444.5,0.08180412]
[1724807379488,4.09,2445.0,2444.6,5.55511768]
[1724807379688,6.37543,2445.4,2444.6,5.55511768]
[1724807379926,6.37543,2445.4,2444.4,4.43599781]
[1724807379927,4.09027,2444.9,2444.4,4.43599781]
[1724807380125,4.09027,2444.9,2444.5,0.08180308]
[1724807381540,4.09073,2444.6,2444.3,5.55511768]
[1724807381843,4.09145,2444.2,2443.7,5.96531768]
[1724807382060,4.09122,2444.3,2443.7,5.96531768]
[1724807382217,4.09122,2444.3,2443.9,0.4102]
[1724807382420,4.09135,2444.2,2443.9,0.4102]
[1724807383161,3.23729071,2444.2,2443.8,0.4102]
[1724807383399,3.23729071,2444.2,2443.4,5.55511768]
[1724807383400,4.09176,2444.0,2443.4,5.55511768]
[1724807383667,0.409135,2444.1,2443.4,5.55511768]
[1724807383668,4.0921,2443.8,2443.4,0.83867177]
[1724807383817,4.0921,2443.8,2443.3,0.4102]
[1724807384251,4.0921,2443.8,2443.2,0.4102]
[1724807384855,4.09183,2443.9,2443.2,0.4102]
[1724807385156,4.09156,2444.1,2443.4,5.55511768]
[1724807385467,4.0912,2444.3,2443.7,5.55511768]
[1724807385650,4.0912,2444.3,2443.7,5.63694974]
[1724807385825,4.09141,2444.2,2443.7,5.63694974]
[1724807386556,4.09141,2444.2,2443.7,5.55511768]
[1724807386977,4.09149,2444.1,2443.7,5.55511768]
[1724807387975,8.82452,2444.3,2443.7,5.55511768]
[1724807388175,8.1825,2444.3,2443.7,5.55511768]
[1724807388721,4.09134,2444.2,2443.7,5.55511768]
[1724807389140,4.0912,2444.3,2443.8,0.08183425]
[1724807389457,8.18247,2444.3,2443.8,0.08183425]
[1724807390276,4.0912,2444.3,2443.8,0.08183425]
[1724807390680,4.09144,2444.2,2443.8,0.08183425]
[1724807391245,4.0912,2444.3,2443.8,0.08183425]
[1724807391454,4.09103,2444.4,2443.8,1.46879987]
[1724807391875,4.09117,2444.3,2443.8,1.46879987]
[1724807392046,4.09132,2444.2,2443.8,1.46879987]
[1724807393532,4.09132,2444.2,2443.8,1.38696562]
[1724807393734,4.09132,2444.2,2443.8,1.46879214]
[1724807393933,8.18246,2444.3,2443.8,1.46879214]
[1724807394178,4.09117,2444.3,2443.9,0.7887605]
[1724807395369,8.18245,2444.3,2443.9,0.7887605]
[1724807395735,4.16309132,2444.2,2443.9,0.7887605]
[1724807396778,4.09149,2444.1,2443.9,0.7887605]
[1724807397081,0.0718478,2444.0,2443.8,1.46879359]
[1724807397480,4.09117,2444.3,2443.8,1.46879359]
[1724807397797,0.07175857,2443.9,2443.8,1.46879359]
[1724807397985,4.09133,2444.2,2443.8,1.46879359]
[1724807398196,0.07175857,2443.9,2443.8,1.46879359]
[1724807398562,4.09153,2444.1,2443.8,1.46879359]
[1724807398889,4.09184,2443.9,2443.6,7.36900909]
[1724807399190,8.18382,2443.9,2443.6,7.36900909]
[1724807399488,0.07173307,2443.8,2443.6,7.36900909]
[1724807399791,4.16379307,2443.8,2443.5,3.64051651]
[1724807399947,0.07173307,2443.8,2443.5,5.47462325]
[1724807400294,0.07173307,2443.8,2443.6,4.17301481]
[1724807400507,0.07173307,2443.8,2443.6,4.25485012]
[1724807400657,4.09174,2444.0,2443.7,0.96476335]
[1724807400884,4.09174,2444.0,2443.5,5.39278342]
[1724807400885,6.49067909,2443.7,2443.2,7.77920909]
[1724807401124,4.09257,2443.5,2443.2,7.77920909]
[1724807401307,4.09269,2443.4,2443.2,0.4102]
[1724807401508,4.09282,2443.3,2442.9,0.64060251]
[1724807401713,4.16434909,2443.3,2442.6,4.17301481]
[1724807401918,4.09309,2443.2,2442.8,4.17301481]
[1724807402218,4.09319,2443.1,2442.8,4.17301481]
[1724807402720,0.07126133,2443.0,2442.6,4.25487936]
[1724807402933,4.16461133,2443.0,2442.6,5.6916782]
[1724807403083,4.16461133,2443.0,2442.6,5.60981365]
[1724807403278,4.16461133,2443.0,2442.6,5.69168471]
[1724807403585,4.16463133,2443.0,2442.6,5.69168471]
[1724807403930,0.07126133,2443.0,2442.8,4.17301481]
[1724807404077,8.18584,2443.3,2442.8,0.08186268]
[1724807404407,0.07025362,2442.9,2442.8,0.08186268]
[1724807404606,0.07025362,2442.9,2442.8,0.79048408]
[1724807405728,8.18589,2443.3,2442.8,0.79048408]
[1724807405928,0.07025362,2442.9,2442.8,0.08186268]
[1724807406085,4.09316,2443.1,2442.7,5.56755243]
[1724807406282,0.07025362,2442.9,2442.7,5.56755243]
[1724807406590,4.09316,2443.1,2442.4,0.4102]
[1724807406591,4.09316,2443.1,2442.8,0.0818638]
[1724807406921,8.18643,2443.1,2442.5,3.4102]
[1724807407134,8.18643,2443.1,2442.1,18.62829512]
[1724807407135,0.658636,2443.1,2442.1,18.62829512]
[1724807407285,8.18742,2442.8,2442.2,0.08187723]
[1724807407485,4.09366,2442.8,2442.2,0.08187723]
[1724807408382,4.09383,2442.7,2442.2,0.08187723]
[1724807408604,4.09383,2442.7,2442.2,1.42474111]
[1724807408789,4.09383,2442.7,2442.3,0.08188018]
[1724807409326,8.18743,2442.8,2442.3,0.08188018]
[1724807409558,4.09366,2442.8,2442.3,0.08188018]
[1724807410016,8.18743,2442.8,2442.3,0.08188018]
[1724807410189,4.09387,2442.7,2442.3,0.82212983]
[1724807410586,4.16266935,2442.6,2442.2,1.34286388]
[1724807411182,0.06865935,2442.6,2442.3,0.0818802]
[1724807411599,8.18742,2442.8,2442.4,5.56755243]
[1724807411934,0.06865935,2442.7,2442.4,5.56755243]
[1724807412244,8.18742,2442.8,2442.4,6.26678208]
[1724807412545,4.09366,2442.8,2442.4,6.26678208]
[1724807412834,0.06865935,2442.7,2442.4,6.26678208]
[1724807412984,0.06865935,2442.7,2442.6,5.56755243]
[1724807413185,2.4455,2443.1,2442.6,6.42893865]
[1724807413394,0.06865935,2442.7,2442.6,6.42893865]
[1724807413611,4.09378,2442.8,2442.6,5.56755243]
[1724807413831,2.4455,2443.1,2442.6,5.56755243]
[1724807413991,0.06825098,2442.7,2442.6,5.56755243]
[1724807414334,4.0936,2442.9,2442.6,5.56755243]
[1724807414527,0.06844242,2442.7,2442.6,5.56755243]
[1724807414986,4.09367,2442.8,2442.6,5.56755243]
[1724807415188,0.06844242,2442.7,2442.6,5.56755243]
[1724807415587,4.09383,2442.7,2442.6,5.56755243]
[1724807415790,10.51916,2442.7,2442.6,5.56755243]
[1724807416034,10.58760242,2442.7,2442.6,5.56755243]
[1724807416214,3.45185842,2442.7,2442.3,5.56755243]
[1724807416527,4.09433,2442.4,2442.3,5.56755243]
[1724807416735,4.09419,2442.5,2442.3,5.56755243]
[1724807416888,0.06844242,2442.6,2442.3,5.56755243]
[1724807416889,4.0941,2442.6,2442.3,5.56755243]
[1724807417083,0.06844242,2442.4,2442.3,5.56755243]
[1724807417428,4.0941,2442.6,2442.3,5.56755243]
[1724807417947,4.16264242,2442.5,2442.3,5.56755243]
[1724807418613,0.06844242,2442.5,2442.3,5.56755243]
[1724807419034,4.09418,2442.5,2442.3,5.56755243]
[1724807419189,0.06844242,2442.4,2442.3,5.56755243]
[1724807419386,0.06844242,2442.4,2442.3,6.12430767]
[1724807419653,0.06844242,2442.4,2442.3,6.20618453]
[1724807419956,0.06785532,2442.4,2442.3,6.20618453]
[1724807420169,4.094,2442.6,2442.3,6.20618453]
[1724807420323,0.06745965,2442.4,2442.3,6.20618453]
[1724807420521,4.094,2442.6,2442.3,6.20618453]
[1724807420720,0.06745965,2442.4,2442.3,6.12430767]
[1724807420966,8.18781,2442.7,2442.3,6.12430767]
[1724807421169,0.06745965,2442.4,2442.3,6.12430767]
[1724807421321,8.18781,2442.7,2442.3,6.12430767]
[1724807421522,0.06745965,2442.4,2442.3,6.12430767]
[1724807421757,0.06745965,2442.4,2442.3,5.56755243]
[1724807421957,4.09369,2442.8,2442.3,7.95125243]
[1724807422260,4.09369,2442.8,2442.6,5.56755243]
[1724807422468,4.09383,2442.7,2442.6,5.56755243]
[1724807423139,6.43105,2443.0,2442.6,5.56755243]
[1724807423361,6.43105,2443.0,2442.2,7.77920909]
[1724807423362,4.09332,2443.0,2442.9,5.56755243]